bitfinex-derivatives/quotes_BTCF0:USTF0_20250718
["timestamp","ask_amount","ask_price","bid_price","bid_amount"]
[1752799661778,1.491651,119820.0,119810.0,0.41580783]
[1752799662380,1.491651,119820.0,119810.0,0.46028841]
[1752799662574,1.130851,119820.0,119810.0,0.46028841]
[1752799663076,0.1668202,119800.0,119790.0,0.16513936]
[1752799663278,0.1668341,119790.0,119780.0,0.1057]
[1752799663476,0.88012881,119790.0,119780.0,0.1057]
[1752799663780,1.00546356,119790.0,119780.0,0.1057]
[1752799665375,0.166848,119780.0,119770.0,0.1293]
[1752799665679,0.1668619,119770.0,119760.0,0.18873936]
[1752799665874,0.88015661,119770.0,119760.0,0.18873936]
[1752799666080,1.00491531,119770.0,119760.0,0.18873936]
[1752799666480,1.00491531,119770.0,119760.0,0.1293]
[1752799667071,0.6524206,119770.0,119760.0,0.21187]
[1752799667275,1.00491531,119770.0,119760.0,0.21187]
[1752799667976,1.00491531,119770.0,119760.0,0.3787459]
[1752799668277,0.6524206,119770.0,119760.0,0.43818526]
[1752799669177,1.00491531,119770.0,119760.0,0.27130936]
[1752799669374,0.6524206,119770.0,119760.0,0.27130936]
[1752799669575,1.00491531,119770.0,119760.0,0.27130936]
[1752799669777,0.6524206,119770.0,119760.0,0.43818526]
[1752799669978,1.00591531,119770.0,119760.0,0.45518526]
[1752799670178,0.6534206,119770.0,119760.0,0.45518526]
[1752799670779,0.6534206,119770.0,119760.0,0.28830936]
[1752799671072,0.6544206,119770.0,119760.0,0.29730936]
[1752799672082,1.00691531,119770.0,119760.0,0.29730936]
[1752799675083,0.6544206,119770.0,119760.0,0.29730936]
[1752799675275,1.00691531,119770.0,119760.0,0.29730936]
[1752799676180,1.00691531,119770.0,119760.0,0.23787]
[1752799677584,0.6544206,119770.0,119760.0,0.23787]
[1752799677983,1.00691531,119770.0,119760.0,0.23787]
[1752799678483,0.2936206,119770.0,119760.0,0.4047459]
[1752799678678,0.9744206,119770.0,119760.0,0.46418526]
[1752799678885,0.8496619,119770.0,119760.0,1.34447197]
[1752799679083,0.8496619,119770.0,119760.0,1.28503261]
[1752799679284,0.6828,119770.0,119760.0,1.28503261]
[1752799679485,0.002,119770.0,119760.0,1.35924671]
[1752799680187,0.8472563,119780.0,119770.0,0.3787319]
[1752799680385,0.930667,119790.0,119780.0,0.166848]
[1752799680581,0.930667,119790.0,119780.0,0.79887364]
[1752799680886,1.76870585,119790.0,119780.0,0.1057]
[1752799681181,1.76870585,119790.0,119770.0,0.18865564]
[1752799681182,0.166848,119780.0,119770.0,0.18865564]
[1752799681380,0.527648,119780.0,119770.0,0.1293]
[1752799681581,0.65269019,119780.0,119770.0,0.1293]
[1752799681783,1.0051849,119780.0,119770.0,0.1057]
[1752799682383,1.0051849,119780.0,119770.0,0.1137]
[1752799682986,1.0051849,119780.0,119770.0,0.3158019]
[1752799682987,1.33545019,119780.0,119770.0,0.3158019]
[1752799683189,0.97465019,119780.0,119770.0,0.3867319]
[1752799683484,1.33545019,119780.0,119770.0,0.3867319]
[1752799684088,0.97465019,119780.0,119770.0,0.3867319]
[1752799684384,0.80780219,119780.0,119770.0,0.3977319]
[1752799684590,0.80780219,119780.0,119770.0,0.81788754]
[1752799685292,0.97465019,119780.0,119770.0,0.81788754]
[1752799685585,0.97465019,119780.0,119770.0,0.45708754]
[1752799685789,0.80780219,119780.0,119770.0,0.3977319]
[1752799686381,0.4025067,119800.0,119790.0,0.07093]
[1752799686586,1.3342227,119800.0,119790.0,0.3787041]
[1752799686780,1.4596505,119800.0,119790.0,0.3787041]
[1752799687391,1.0988505,119800.0,119790.0,0.3787041]
[1752799687582,1.0571426,119800.0,119790.0,0.3787041]
[1752799687892,1.4179426,119800.0,119790.0,0.3787041]
[1752799688291,1.77043731,119800.0,119790.0,0.3787041]
[1752799688588,1.77043731,119800.0,119780.0,0.274878]
[1752799688589,0.1668341,119790.0,119780.0,0.274878]
[1752799688892,1.00528955,119790.0,119780.0,0.274878]
[1752799689193,1.00528955,119790.0,119780.0,0.10803]
[1752799689386,0.65279484,119790.0,119780.0,0.384248]
[1752799689583,1.33539484,119790.0,119780.0,0.384248]
[1752799690193,1.33539484,119790.0,119780.0,0.387248]
[1752799690393,1.33539484,119790.0,119780.0,0.389248]
[1752799690989,1.16856074,119790.0,119780.0,0.389248]
[1752799691289,0.80776074,119790.0,119780.0,0.389248]
[1752799691486,0.80776074,119790.0,119780.0,0.4487379]
[1752799691988,0.80776074,119790.0,119780.0,0.389248]
[1752799692295,0.6826,119790.0,119780.0,0.9765059]
[1752799692592,0.6826,119790.0,119780.0,1.32900061]
[1752799692794,0.6826,119790.0,119780.0,0.8095379]
[1752799692988,0.6826,119790.0,119780.0,0.389248]
[1752799693192,0.8494341,119790.0,119780.0,0.389248]
[1752799693594,0.6826,119790.0,119780.0,0.389248]
[1752799694091,0.8494341,119790.0,119780.0,0.389248]
[1752799694296,0.6826,119790.0,119780.0,0.389248]
[1752799694595,0.6826,119790.0,119780.0,0.750048]
[1752799694986,0.6826,119790.0,119780.0,0.389248]
[1752799695592,0.8494341,119790.0,119780.0,0.389248]
[1752799696394,0.6826,119790.0,119780.0,0.39777603]
[1752799697199,0.8494341,119790.0,119780.0,0.389248]
[1752799697798,0.6826,119790.0,119780.0,0.389248]
[1752799699796,0.6826,119790.0,119780.0,0.4487379]
[1752799700296,0.8494341,119790.0,119780.0,0.45721134]
[1752799700594,0.6826,119790.0,119780.0,0.389248]
[1752799701794,0.6826,119790.0,119780.0,0.4487379]
[1752799702201,0.6826,119790.0,119780.0,0.389248]
[1752799702401,0.8494341,119790.0,119780.0,0.389248]
[1752799703794,1.20192881,119790.0,119780.0,0.389248]
[1752799703999,1.03509471,119790.0,119780.0,0.389248]
[1752799704198,0.6826,119790.0,119780.0,0.389248]
[1752799705200,0.6826,119790.0,119780.0,0.4487379]
[1752799708202,0.3608,119800.0,119790.0,0.3842341]
[1752799708403,0.6110226,119810.0,119800.0,0.3842202]
[1752799708701,1.2911826,119810.0,119800.0,0.4288949]
[1752799709004,1.41563236,119810.0,119800.0,0.4288949]
[1752799710004,1.37992746,119810.0,119800.0,0.4288949]
[1752799710205,1.37992746,119810.0,119800.0,0.3842202]
[1752799710704,1.33822576,119810.0,119800.0,0.3842202]
[1752799711407,1.17540976,119810.0,119800.0,0.42889015]
[1752799711705,1.34221596,119810.0,119800.0,0.42889015]
[1752799711909,0.98041596,119810.0,119800.0,0.42889015]
[1752799712299,1.33291067,119810.0,119800.0,0.42889015]
[1752799712506,1.34121596,119810.0,119800.0,0.42889015]
[1752799712699,1.34121596,119810.0,119800.0,0.44379152]
[1752799712700,1.69371067,119810.0,119800.0,0.44379152]
[1752799713007,1.33291067,119810.0,119800.0,0.44379152]
[1752799713309,1.16610447,119810.0,119800.0,0.44379152]
[1752799713504,1.33291067,119810.0,119800.0,0.44379152]
[1752799713708,0.81360976,119810.0,119800.0,0.44379152]
[1752799714509,0.98041596,119810.0,119800.0,0.44379152]
[1752799715007,0.98041596,119810.0,119800.0,0.45230442]
[1752799715008,0.81360976,119810.0,119800.0,0.45230442]
[1752799715204,0.98041596,119810.0,119800.0,0.45230442]
[1752799715610,1.28139555,119810.0,119800.0,0.44379152]
[1752799715804,0.81360976,119810.0,119800.0,0.44379152]
[1752799716005,0.98041596,119810.0,119800.0,0.44379152]
[1752799716200,0.81360976,119810.0,119800.0,0.44379152]
[1752799716406,0.81360976,119810.0,119800.0,0.74477111]
[1752799716605,0.13344976,119810.0,119800.0,1.10557111]
[1752799716904,0.69132,119810.0,119800.0,0.80450314]
[1752799717105,0.69132,119810.0,119800.0,1.04599979]
[1752799717310,0.68732,119810.0,119800.0,1.04599979]
[1752799717612,0.68732,119810.0,119800.0,1.1074604]
[1752799718004,0.68232,119810.0,119800.0,1.11578327]
[1752799718204,0.68232,119810.0,119800.0,1.11878188]
[1752799718812,0.68232,119810.0,119800.0,1.05932125]
[1752799719312,0.68232,119810.0,119800.0,0.75834166]
[1752799719712,0.68232,119810.0,119800.0,1.05932125]
[1752799720711,0.68232,119810.0,119800.0,1.13368363]
[1752799721117,0.68232,119810.0,119800.0,0.83270404]
[1752799721318,0.68232,119810.0,119800.0,1.13368363]
[1752799721714,0.68232,119810.0,119800.0,1.05932125]
[1752799722218,0.68232,119810.0,119800.0,0.75834166]
[1752799722425,0.8491262,119810.0,119800.0,1.05932125]
[1752799722616,1.15010579,119810.0,119800.0,0.45692499]
[1752799723212,0.8491262,119810.0,119800.0,0.45692499]
[1752799723420,0.68232,119810.0,119800.0,0.45692499]
[1752799723922,0.68232,119810.0,119800.0,0.44860353]
[1752799724821,0.8491262,119810.0,119800.0,0.44860353]
[1752799725018,1.2099262,119810.0,119800.0,0.44860353]
[1752799725219,1.51090579,119810.0,119800.0,0.44860353]
[1752799726415,1.63590283,119810.0,119800.0,0.1718202]
[1752799726620,1.63590283,119810.0,119800.0,0.23120353]
[1752799727514,1.63590283,119810.0,119800.0,0.33654353]
[1752799727713,1.64490283,119810.0,119800.0,0.1668202]
[1752799728824,1.34392324,119810.0,119800.0,0.1668202]
[1752799729025,1.64490283,119810.0,119800.0,0.1668202]
[1752799729827,1.64490283,119810.0,119800.0,0.2272402]
[1752799730334,1.64442283,119810.0,119800.0,0.2272402]
[1752799730827,1.64410283,119810.0,119800.0,0.2272402]
[1752799731617,1.64410283,119810.0,119800.0,0.28662353]
[1752799731819,0.1668202,119800.0,119790.0,0.44091023]
[1752799732018,0.82859979,119800.0,119790.0,0.44091023]
[1752799732221,0.95380238,119800.0,119790.0,0.19067333]
[1752799732427,1.42173397,119800.0,119790.0,0.05938333]
[1752799732628,0.166848,119780.0,119770.0,0.16672333]
[1752799732825,1.51014759,119780.0,119770.0,0.10734]
[1752799733032,1.63527793,119780.0,119770.0,0.18170238]
[1752799733330,1.33437834,119780.0,119770.0,0.34856438]
[1752799733529,1.33437834,119780.0,119770.0,0.37251438]
[1752799733730,1.33561834,119780.0,119770.0,0.37251438]
[1752799734131,1.63659793,119780.0,119770.0,0.37251438]
[1752799734523,1.63759793,119780.0,119770.0,0.38451438]
[1752799734924,1.33661834,119780.0,119770.0,0.38451438]
[1752799735127,1.63759793,119780.0,119770.0,0.38451438]
[1752799735433,1.63759793,119780.0,119770.0,0.36961102]
[1752799736133,1.33661834,119780.0,119770.0,0.36961102]
[1752799736330,1.63859793,119780.0,119770.0,0.37861102]
[1752799736933,1.33761834,119780.0,119770.0,0.37861102]
[1752799737133,1.63859793,119780.0,119770.0,0.37861102]
[1752799738336,1.33761834,119780.0,119770.0,0.37861102]
[1752799738532,1.63859793,119780.0,119770.0,0.37861102]
[1752799738727,1.33761834,119780.0,119770.0,0.37861102]
[1752799738930,1.63859793,119780.0,119770.0,0.37861102]
[1752799739532,1.64701132,119780.0,119770.0,0.37861102]
[1752799740536,1.34719173,119780.0,119770.0,0.37861102]
[1752799740738,0.97797834,119780.0,119770.0,0.42170102]
[1752799741039,0.97797834,119780.0,119770.0,0.43660438]
[1752799741334,1.63975793,119780.0,119770.0,0.19538]
[1752799741542,1.63975793,119780.0,119770.0,0.40589428]
[1752799741732,1.63975793,119780.0,119770.0,0.39351428]
[1752799741937,1.28739093,119780.0,119770.0,0.3191519]
[1752799742131,1.28739093,119780.0,119770.0,0.39351428]
[1752799742132,1.34721134,119780.0,119770.0,0.39351428]
[1752799742441,1.63975793,119780.0,119770.0,0.39351428]
[1752799742642,1.33877834,119780.0,119770.0,0.2952019]
[1752799742943,1.33877834,119780.0,119770.0,0.3191519]
[1752799743738,1.27895793,119780.0,119770.0,0.3191519]
[1752799743940,1.27895793,119780.0,119770.0,0.40589428]
[1752799744137,0.59495793,119780.0,119770.0,0.40589428]
[1752799744447,1.27899793,119780.0,119770.0,0.40589428]
[1752799744842,0.97801834,119780.0,119770.0,0.40589428]
[1752799745242,1.63979793,119780.0,119770.0,0.09536238]
[1752799745547,1.63979793,119780.0,119770.0,0.32264428]
[1752799745743,1.63979793,119780.0,119770.0,0.36956428]
[1752799746239,1.63979793,119780.0,119770.0,0.21765238]
[1752799746446,1.63779793,119780.0,119770.0,0.13929]
[1752799746645,1.63779793,119780.0,119770.0,0.15029]
[1752799747046,1.63779793,119780.0,119770.0,0.12634]
[1752799747249,1.33681834,119780.0,119770.0,0.12634]
[1752799747439,1.63779793,119780.0,119770.0,0.12634]
[1752799747948,1.63779793,119780.0,119770.0,0.2932019]
[1752799748545,1.63779793,119780.0,119770.0,0.12634]
[1752799748745,1.33681834,119780.0,119770.0,0.2932019]
[1752799748945,1.63779793,119780.0,119770.0,0.12634]
[1752799749450,1.40340132,119780.0,119770.0,0.12634]
[1752799749647,1.40340132,119780.0,119770.0,0.2932019]
[1752799749850,1.70438091,119780.0,119770.0,0.2932019]
[1752799750150,1.70438091,119780.0,119770.0,0.12634]
[1752799750851,1.70438091,119780.0,119770.0,0.2932019]
[1752799751051,1.70438091,119780.0,119770.0,0.3154919]
[1752799751252,1.7211273,119780.0,119770.0,0.3154919]
[1752799751550,1.42014771,119780.0,119770.0,0.3154919]
[1752799751854,1.42014771,119780.0,119770.0,0.38989646]
[1752799752152,1.7211273,119780.0,119770.0,0.38989646]
[1752799752751,1.3593273,119780.0,119770.0,0.47104646]
[1752799754754,1.3593273,119780.0,119770.0,0.3966419]
[1752799756554,1.05834771,119780.0,119770.0,0.47104646]
[1752799756751,1.3593273,119780.0,119770.0,0.47104646]
[1752799757445,1.05834771,119780.0,119770.0,0.47104646]
[1752799757651,1.3593273,119780.0,119770.0,0.47104646]
[1752799758254,1.3593273,119780.0,119770.0,0.3966419]
[1752799758856,1.41914771,119780.0,119770.0,0.19248]
[1752799759052,1.7201273,119780.0,119770.0,0.12634]
[1752799759257,1.7201273,119780.0,119770.0,0.1858619]
[1752799759458,1.7201273,119780.0,119770.0,0.2933119]
[1752799760054,1.7201273,119780.0,119770.0,0.39747829]
[1752799760254,1.7201273,119780.0,119770.0,0.41976829]
[1752799762158,1.7201273,119780.0,119770.0,0.23061639]
[1752799762352,1.7201273,119780.0,119770.0,0.12316639]
[1752799762657,1.04160132,119780.0,119770.0,0.34998829]
[1752799762858,1.88725773,119780.0,119770.0,0.12316639]
[1752799764161,1.88725773,119780.0,119770.0,0.1977432]
[1752799764352,2.18823732,119780.0,119770.0,0.09357681]
[1752799764556,2.43823732,119780.0,119770.0,0.09357681]
[1752799764864,2.13725773,119780.0,119770.0,0.019]
[1752799765061,1.45421773,119780.0,119770.0,0.019]
[1752799765364,2.13085773,119780.0,119770.0,0.09357681]
[1752799765662,2.13085773,119780.0,119770.0,0.019]
[1752799765863,2.13085773,119780.0,119770.0,0.011]
[1752799766065,2.13485773,119780.0,119770.0,0.011]
[1752799766268,2.13485773,119780.0,119760.0,0.07457681]
[1752799766269,0.1668619,119770.0,119760.0,0.07457681]
[1752799766568,0.82864149,119770.0,119760.0,0.07457681]
[1752799766764,0.95467686,119770.0,119760.0,0.07457681]
[1752799767263,0.95467686,119770.0,119760.0,0.07757681]
[1752799769861,1.42264845,119770.0,119760.0,0.003]
[1752799770067,1.42264845,119770.0,119760.0,0.07957681]
[1752799770362,1.42264845,119770.0,119760.0,0.005]
[1752799770565,1.42264845,119770.0,119760.0,0.07957681]
[1752799770764,1.42264845,119770.0,119760.0,0.005]
[1752799772167,1.12166886,119770.0,119760.0,0.005]
[1752799772566,1.32701727,119770.0,119760.0,0.14696]
[1752799772760,1.32701727,119770.0,119760.0,0.3827658]
[1752799772962,0.95467686,119770.0,119760.0,0.3827658]
[1752799773262,0.29289727,119770.0,119760.0,0.45734261]
[1752799773458,0.96601727,119770.0,119760.0,0.45734261]
[1752799774367,1.26699686,119770.0,119760.0,0.29046681]
[1752799774567,1.62779686,119770.0,119760.0,0.29046681]
[1752799775469,1.62779686,119770.0,119760.0,0.21589]
[1752799775670,1.32681727,119770.0,119760.0,0.3827658]
[1752799775872,1.26699686,119770.0,119760.0,0.3827658]
[1752799776169,0.96601727,119770.0,119760.0,0.3827658]
[1752799776363,1.26699686,119770.0,119760.0,0.45734261]
[1752799776761,1.26699686,119770.0,119760.0,0.3827658]
[1752799777869,1.32681727,119770.0,119760.0,0.44238593]
[1752799778069,1.62779686,119770.0,119760.0,0.44238593]
[1752799778770,1.62779686,119770.0,119760.0,0.21589]
[1752799778969,1.62779686,119770.0,119760.0,0.17947091]
[1752799780066,1.26699686,119770.0,119760.0,0.17947091]
[1752799780365,1.26699686,119770.0,119760.0,0.42515671]
[1752799780566,1.32681727,119770.0,119760.0,0.17947091]
[1752799780772,1.62779686,119770.0,119760.0,0.17947091]
[1752799781160,0.96601727,119770.0,119760.0,0.19090091]
[1752799781361,1.26699686,119770.0,119760.0,0.42515671]
[1752799781564,1.62779686,119770.0,119760.0,0.25828091]
[1752799781865,1.62779686,119770.0,119760.0,0.42515671]
[1752799782065,1.26699686,119770.0,119760.0,0.42515671]
[1752799782570,1.26699686,119770.0,119760.0,0.25828091]
[1752799782870,1.62779686,119770.0,119760.0,0.25828091]
[1752799783072,1.26699686,119770.0,119760.0,0.25828091]
[1752799783277,1.62779686,119770.0,119760.0,0.22163091]
[1752799783568,1.62527686,119770.0,119760.0,0.15718091]
[1752799783870,1.62527686,119770.0,119760.0,0.04973091]
[1752799784264,1.62527686,119770.0,119760.0,0.005]
[1752799784464,1.62527686,119770.0,119760.0,0.04973091]
[1752799784664,1.62527686,119770.0,119760.0,0.005]
[1752799785463,1.62527686,119770.0,119760.0,0.04973091]
[1752799786270,1.62527686,119770.0,119760.0,0.10409091]
[1752799786969,1.62527686,119770.0,119760.0,0.04973091]
[1752799789680,1.32429727,119770.0,119760.0,0.005]
[1752799789977,1.62527686,119770.0,119760.0,0.005]
[1752799790773,1.92625645,119770.0,119760.0,0.005]
[1752799791078,2.09324845,119770.0,119760.0,0.005]
[1752799791275,1.49128927,119770.0,119760.0,0.005]
[1752799791474,2.09324845,119770.0,119760.0,0.005]
[1752799796375,2.09324845,119770.0,119740.0,0.16926091]
[1752799796376,0.1668898,119750.0,119740.0,0.04473091]
[1752799796675,3.15124636,119750.0,119740.0,0.14596091]
[1752799796872,3.15100636,119750.0,119740.0,0.14596091]
[1752799797581,3.15100636,119750.0,119740.0,0.14796091]
[1752799797973,3.15100636,119750.0,119740.0,0.15096091]
[1752799798175,3.15076636,119750.0,119740.0,0.15096091]
[1752799798679,2.48672636,119750.0,119740.0,0.15096091]
[1752799798884,3.14976636,119750.0,119740.0,0.15096091]
[1752799799584,3.14976636,119750.0,119740.0,0.04973091]
[1752799799978,3.14976636,119750.0,119740.0,0.10409091]
[1752799800278,3.14976636,119750.0,119740.0,0.17426091]
[1752799800979,2.18574677,119750.0,119740.0,0.17426091]
[1752799801184,3.14896636,119750.0,119740.0,0.25307091]
[1752799801376,3.14896636,119750.0,119740.0,0.04973091]
[1752799801780,3.14896636,119750.0,119740.0,0.005]
[1752799802179,3.31599036,119750.0,119740.0,0.005]
[1752799802380,0.1669037,119740.0,119730.0,0.04589091]
[1752799802585,0.82868329,119740.0,119730.0,0.02061611]
[1752799802780,0.1669315,119720.0,119710.0,0.16085013]
[1752799802985,2.15237068,119720.0,119710.0,0.05436]
[1752799803181,2.27731226,119720.0,119710.0,0.05436]
[1752799803382,2.34263414,119720.0,119710.0,0.05436]
[1752799803684,2.34263414,119720.0,119710.0,0.10123]
[1752799803880,2.34263414,119720.0,119710.0,0.10923]
[1752799804077,2.34363414,119720.0,119710.0,0.13253]
[1752799804276,2.34363414,119720.0,119710.0,0.14353]
[1752799804482,2.34463414,119720.0,119710.0,0.14353]
[1752799804786,2.05191282,119720.0,119710.0,0.14353]
[1752799805086,2.05191282,119720.0,119710.0,0.18569]
[1752799805286,2.05191282,119720.0,119710.0,0.22234]
[1752799806188,2.35289241,119720.0,119710.0,0.14353]
[1752799806482,2.05191282,119720.0,119710.0,0.12023]
[1752799806687,2.35289241,119720.0,119710.0,0.14353]
[1752799807188,2.35289241,119720.0,119710.0,0.12023]
[1752799807488,2.35289241,119720.0,119710.0,0.17985013]
[1752799810384,2.35289241,119720.0,119710.0,0.019]
[1752799811489,2.35189241,119720.0,119710.0,0.008]
[1752799811689,2.35289241,119720.0,119710.0,0.12283]
[1752799811887,2.35189241,119720.0,119710.0,0.009]
[1752799812087,2.35289241,119720.0,119710.0,0.016]
[1752799812986,0.1669595,119700.0,119690.0,0.12755]
[1752799813195,3.00649909,119700.0,119690.0,0.10583]
[1752799813494,3.00649909,119700.0,119680.0,0.08134013]
[1752799813495,0.1669735,119690.0,119680.0,0.12755]
[1752799813694,1.12973268,119690.0,119680.0,0.12755]
[1752799813993,1.25429849,119690.0,119680.0,0.12755]
[1752799814194,0.1669874,119680.0,119670.0,0.12755]
[1752799814388,1.79102658,119680.0,119670.0,0.12755]
[1752799814694,1.91603409,119680.0,119670.0,0.12755]
[1752799815294,0.2414753,119660.0,119650.0,0.21980013]
[1752799815494,1.56401489,119660.0,119650.0,0.21980013]
[1752799815693,1.68869183,119660.0,119650.0,0.12737]
[1752799816084,2.05762834,119660.0,119650.0,0.07953]
[1752799816290,2.05762834,119660.0,119650.0,0.05781]
[1752799817195,2.05786834,119660.0,119650.0,0.08553]
[1752799817396,2.05786834,119660.0,119650.0,0.13355]
[1752799818296,2.05786834,119660.0,119630.0,0.31019463]
[1752799818297,0.2355033,119640.0,119630.0,0.26782013]
[1752799818496,3.01382248,119640.0,119630.0,0.26782013]
[1752799818696,3.13976239,119640.0,119630.0,0.26782013]
[1752799818892,2.84040239,119640.0,119630.0,0.26782013]
[1752799819098,0.1991572,119630.0,119620.0,0.11743013]
[1752799819299,0.89729679,119630.0,119620.0,0.13844]
[1752799819494,0.6613564,119630.0,119620.0,0.3752712]
[1752799819690,0.6613564,119630.0,119620.0,0.2082]
[1752799819894,1.6816764,119630.0,119620.0,0.2082]
[1752799820097,1.6816764,119630.0,119620.0,0.3752712]
[1752799820701,1.6453164,119630.0,119620.0,0.2082]
[1752799821097,1.6451964,119630.0,119620.0,0.3752712]
[1752799821291,0.12485961,119630.0,119620.0,1.51386292]
[1752799821496,0.1680433,119640.0,119630.0,0.3752572]
[1752799821697,0.8261233,119640.0,119630.0,0.43470306]
[1752799821898,0.95204426,119640.0,119630.0,0.43470306]
[1752799822100,1.25302385,119640.0,119630.0,0.43470306]
[1752799822499,1.61482385,119640.0,119630.0,0.27264586]
[1752799822798,1.95316344,119640.0,119630.0,0.26179079]
[1752799823004,1.95316344,119640.0,119630.0,0.19203079]
[1752799823406,1.95316344,119640.0,119630.0,0.18114079]
[1752799823602,1.95316344,119640.0,119630.0,0.06681]
[1752799824003,1.95316344,119640.0,119630.0,0.009]
[1752799824900,1.29408344,119640.0,119630.0,0.009]
[1752799825100,1.95216344,119640.0,119630.0,0.06681]
[1752799825605,1.95216344,119640.0,119630.0,0.13655]
[1752799825806,1.95216344,119640.0,119630.0,0.13155]
[1752799826200,1.95116344,119640.0,119630.0,0.12755]
[1752799826407,1.95692344,119640.0,119630.0,0.12855]
[1752799826810,1.29908344,119640.0,119630.0,0.12855]
[1752799827109,1.95672344,119640.0,119630.0,0.13944]
[1752799829614,1.95672344,119640.0,119630.0,0.12855]
[1752799830008,1.95672344,119640.0,119630.0,0.05881]
[1752799830212,1.95672344,119640.0,119630.0,0.001]
[1752799830412,1.95672344,119640.0,119630.0,1e-07]
[1752799830611,0.1991572,119630.0,119620.0,0.10249923]
[1752799830808,0.89729679,119630.0,119620.0,0.04468923]
[1752799831012,1.02257852,119630.0,119620.0,9.844e-05]
[1752799831710,1.02257852,119630.0,119620.0,0.04468923]
[1752799831711,0.72159893,119630.0,119620.0,0.04468923]
[1752799831910,1.02357852,119630.0,119620.0,0.10849923]
[1752799832110,1.02857852,119630.0,119620.0,0.10949923]
[1752799833115,1.02857852,119630.0,119620.0,0.10349923]
[1752799834412,1.68725852,119630.0,119620.0,0.18412923]
[1752799834609,0.99221852,119630.0,119620.0,0.20929844]
[1752799834806,1.65057852,119630.0,119620.0,0.20929844]
[1752799835215,1.68693852,119630.0,119620.0,0.20929844]
[1752799835615,1.02857852,119630.0,119620.0,0.20929844]
[1752799835812,1.68693852,119630.0,119620.0,0.20929844]
[1752799836409,1.38595893,119630.0,119620.0,0.20929844]
[1752799836609,0.63141852,119630.0,119620.0,0.20929844]
[1752799836907,1.61747852,119630.0,119620.0,0.20929844]
[1752799837111,1.61747852,119630.0,119620.0,0.37636964]
[1752799837112,1.25667852,119630.0,119620.0,0.37636964]
[1752799837314,0.95569893,119630.0,119620.0,0.20929844]
[1752799837514,0.13128173,119630.0,119620.0,1.15436164]
[1752799837714,0.95529893,119630.0,119620.0,1.15436164]
[1752799838319,0.95529893,119630.0,119620.0,0.79356164]
[1752799838521,0.95529893,119630.0,119620.0,1.15436164]
[1752799839620,0.8300172,119630.0,119620.0,1.15436164]
[1752799840016,0.1730572,119630.0,119620.0,1.15436164]
[1752799840321,0.8286172,119630.0,119620.0,1.15436164]
[1752799840820,0.1494172,119630.0,119620.0,1.15436164]
[1752799841021,0.7452372,119630.0,119620.0,1.15436164]
[1752799841218,0.2849944,119630.0,119620.0,1.50808837]
[1752799841618,0.9052569,119640.0,119630.0,0.1670572]
[1752799841818,0.9052569,119640.0,119630.0,0.5278572]
[1752799842017,0.9052569,119640.0,119630.0,0.9450332]
[1752799842321,0.9958469,119640.0,119630.0,0.95349913]
[1752799842615,0.3748772,119630.0,119620.0,0.04568923]
[1752799842825,1.08940393,119630.0,119620.0,4e-08]
[1752799843014,1.21419253,119630.0,119620.0,4e-08]
[1752799843216,0.1671131,119590.0,119580.0,0.40539079]
[1752799843423,0.65810983,119590.0,119580.0,0.57251789]
[1752799843721,0.43045033,119590.0,119580.0,0.98976589]
[1752799844114,0.43045033,119590.0,119580.0,0.73976589]
[1752799844115,0.41885033,119590.0,119580.0,0.73976589]
[1752799844511,0.43465338,119620.0,119610.0,0.1670852]
[1752799844512,0.12567,119620.0,119610.0,0.1670852]
[1752799844716,0.1680582,119630.0,119620.0,0.1670712]
[1752799844717,0.3772698,119630.0,119620.0,0.1670712]
[1752799844916,0.2706612,119620.0,119610.0,0.65616803]
[1752799845122,0.2927412,119620.0,119610.0,0.65616803]
[1752799845322,0.2927412,119620.0,119610.0,1.07336803]
[1752799845523,0.12567,119620.0,119610.0,1.07336803]
[1752799845719,0.1901499,119630.0,119620.0,0.1670712]
[1752799845924,0.001,119630.0,119620.0,0.88159793]
[1752799846119,0.001,119630.0,119620.0,1.34354446]
[1752799848328,0.9465398,119650.0,119640.0,0.1670433]
[1752799848627,0.22823461,119650.0,119640.0,0.88157003]
[1752799848822,0.22823461,119650.0,119640.0,1.04873003]
[1752799848823,0.12464461,119650.0,119640.0,1.04873003]
[1752799849023,0.2706153,119660.0,119650.0,0.1670293]
[1752799849223,0.2926953,119660.0,119650.0,0.5278293]
[1752799849423,0.41734562,119660.0,119650.0,0.5278293]
[1752799849728,0.42893562,119660.0,119650.0,0.5278293]
[1752799850625,0.49948562,119660.0,119650.0,0.5278293]
[1752799851528,0.50148562,119660.0,119650.0,0.5288293]
[1752799854634,0.33447032,119660.0,119650.0,0.5288293]
[1752799855535,0.35188273,119660.0,119650.0,0.5288293]
[1752799856433,0.35188273,119660.0,119650.0,0.5700693]
[1752799858635,0.31333273,119660.0,119650.0,0.5971893]
[1752799859737,0.48034813,119660.0,119650.0,0.5971893]
[1752799860237,0.51889813,119660.0,119650.0,0.5944793]
[1752799860737,0.35188273,119660.0,119650.0,0.5944793]
[1752799860932,0.51889813,119660.0,119650.0,0.5944793]
[1752799865736,0.87262486,119660.0,119650.0,0.04224]
[1752799866039,0.87262486,119660.0,119650.0,0.001]
[1752799866040,1.35949199,119660.0,119650.0,0.001]
[1752799866339,0.99869199,119660.0,119650.0,0.001]
[1752799866538,0.99869199,119660.0,119650.0,0.1680293]
[1752799866741,0.99869199,119660.0,119650.0,0.001]
[1752799867141,0.99869199,119660.0,119650.0,0.1680293]
[1752799867640,0.99869199,119660.0,119650.0,0.1723693]
[1752799867840,0.64496526,119660.0,119650.0,0.5700693]
[1752799868638,0.26973273,119660.0,119650.0,0.94992603]
[1752799869140,0.12300241,119660.0,119650.0,0.94992603]
[1752799869340,0.10559,119660.0,119650.0,0.94992603]
[1752799870242,0.2726053,119660.0,119650.0,0.5961993]
[1752799870541,0.10559,119660.0,119650.0,0.5961993]
[1752799870837,0.2726053,119660.0,119650.0,0.5961993]
[1752799871037,0.2970253,119660.0,119650.0,0.5961993]
[1752799871542,0.3842053,119660.0,119650.0,0.5934893]
[1752799874038,0.3842053,119660.0,119650.0,0.65293516]
[1752799874239,0.3842053,119660.0,119650.0,0.65564516]
[1752799874838,0.14157,119660.0,119650.0,1.00937189]
[1752799875039,0.13001,119660.0,119650.0,1.00937189]
[1752799875240,0.13001,119660.0,119650.0,2.08859003]
[1752799875241,0.002,119660.0,119650.0,2.08859003]
[1752799875541,0.1156,119670.0,119660.0,0.2056253]
[1752799875842,0.2826014,119670.0,119660.0,0.63538424]
[1752799876037,0.3070214,119670.0,119660.0,0.63538424]
[1752799876235,0.3070214,119670.0,119660.0,0.5905553]
[1752799876433,0.14002,119670.0,119660.0,0.5905553]
[1752799876637,0.1256,119670.0,119660.0,0.99111097]
[1752799877037,0.2926014,119670.0,119660.0,0.63738424]
[1752799877244,0.15002,119670.0,119660.0,1.28678424]
[1752799877742,0.15602,119670.0,119660.0,1.28778424]